Cogmind - Beta 13 @@@ ROGUE MODE // 2024.02.29 @ 11:36:21 Player: Kaz Result: Self-destructed Performance ------------- Evolutions (1) 500 Regions Visited (2) 400 Robots Destroyed (22) 110 Value Destroyed (470) 470 Prototype IDs (0) 0 Alien Tech Used (0) 0 Bonus (0) 0 TOTAL SCORE: 1480 Bonus ------- None Cogmind --------- Core Integrity 351/400 Matter 156/300 Energy 250/250 System Corruption 0% Temperature Cool (0) Movement Rolling (95) Ox1 Location -9/Materials Parts ------- > --- POWER (1) -------- Ion Engine > --- PROPULSION (2) --- Wheel Wheel > --- UTILITY (4) ------ Small Storage Unit Large Storage Unit > --- WEAPON (2) ------- Light Assault Rifle > --- INVENTORY (15) --- Light Armor Plating Light Armor Plating Light Armor Plating EM Pulse Gun Medium Laser Datajack Peak State ------------ > --- POWER ------------ Light Ion Engine > --- PROPULSION ------- Aluminum Leg Aluminum Leg > --- UTILITY ---------- Small Storage Unit Large Storage Unit > --- WEAPON ----------- Medium Laser Assault Rifle > --- INVENTORY -------- Wheel Wheel EM Pulse Gun Grenade Launcher [Rating: 7] Favorites ----------- Power Light Ion Engine Engine Light Ion Engine Propulsion Aluminum Leg Leg Aluminum Leg Wheel Wheel Utility Small Storage Unit Storage Small Storage Unit Weapon Light Assault Rifle Energy Gun Medium Laser Ballistic Gun Light Assault Rifle Launcher Grenade Launcher Special Melee Weapon Datajack Build | -11 -10 -9 ------- Run | Yrd Mat Mat Slots Evolved 2 | . . 2 Power . | . . . Propulsion . | . . . Utility 2 | . . 2 Weapon . | . . . Parts Attached 16 | 8 8 . Power 2 | 1 1 . Engine 2 | 1 1 . Core . | . . . Reactor . | . . . Propulsion 6 | 4 2 . Treads . | . . . Leg 2 | 2 . . Wheel 4 | 2 2 . Hover . | . . . Flight . | . . . Utility 2 | 1 1 . Device . | . . . Storage 2 | 1 1 . Processor . | . . . Hackware . | . . . Protection . | . . . Artifact . | . . . Weapon 6 | 2 4 . Energy Gun 1 | 1 . . Energy Cannon . | . . . Ballistic Gun 3 | 1 2 . Ballistic Cannon . | . . . Launcher 1 | . 1 . Special Weapon . | . . . Impact Weapon . | . . . Slashing Weapon . | . . . Piercing Weapon . | . . . Special Melee Weapon 1 | . 1 . Unidentified Prototypes . | . . . Parts Lost 5 | . 4 1 Power 1 | . 1 . Propulsion 1 | . 1 . Utility . | . . . Weapon 3 | . 2 1 Highest Loss Streak 1 | . 1 1 To Critical Strikes . | . . . Average Slot Usage (%) 89 | . 91 77 Engine 9 | . 8 11 Leg 18 | . 20 . Wheel 6 | . 4 22 Storage 26 | . 27 22 Ballistic Gun 22 | . 23 11 Launcher 2 | . 1 11 Special Melee Weapon 2 | . 2 . Naked Turns . | . . . Heaviest Build 34 | 12 34 34 Greatest Support 20 | 20 20 20 Greatest Overweight (x) 2 | 2 2 1 Average Overweight (x) . | . 1 1 Largest Inventory Capacity 15 | 8 15 15 Average Capacity 13 | 7 14 15 Most Carried 10 | 3 10 6 Average Carried 6 | 2 7 6 Final Capacity 15 | 8 15 15 Final Carried 6 | 3 6 6 Class Distribution -------------------- 100% | Mutant Dominant Class ---------------- Mutant | -10/Materials Mutant | -9/Materials Resources | -11 -10 -9 ----------- Run | Yrd Mat Mat Matter Collected 617 | 273 315 29 Remotely . | . . . Salvage Created 717 | 124 472 121 Parts 36 | 2 23 11 Haulers Intercepted 1 | . . 1 Recyclers Shooed 3 | . 2 1 Parts Field Recycled . | . . . Retrieved Matter . | . . . Parts Self-Destructed . | . . . Prevented . | . . . Kills | -11 -10 -9 ------- Run | Yrd Mat Mat Combat Hostiles Destroyed 14 | . 11 3 Guns 9 | . 9 . AOE 5 | . 2 3 Classes Destroyed 8 | 2 3 3 Worker 2 | 2 . . Builder 2 | . 1 1 Hauler 1 | . . 1 Recycler 2 | 1 1 . Watcher 1 | . . 1 Swarmer 3 | . 3 . Grunt 10 | . 8 2 Sentry 1 | . . 1 Best Kill Streak 6 | 3 4 6 Combat Bots Only 3 | . 3 3 Max Kills in Single Turn 1 | 1 1 1 Gunslinging . | . . . Exploded 1 | . 1 1 Melee . | . . . Uniques/NPCs Destroyed . | . . . Combat | -11 -10 -9 -------- Run | Yrd Mat Mat Hostile Shots Fired 112 | . 90 22 Missed 33 | . 23 10 Damage Taken 868 | . 649 219 Core 180 | . 131 49 Absorbed by Shields . | . . . Core Remaining (%) 73 | 100 47 . Volleys Fired 90 | 15 56 19 Largest 2 | 2 2 1 Hottest 70 | 70 40 30 Shots Fired 153 | 30 104 19 Gun 131 | 30 99 2 Cannon . | . . . Launcher 22 | . 5 17 Special . | . . . Kinetic 116 | 15 99 2 Thermal 15 | 15 . . Explosive 22 | . 5 17 Electromagnetic . | . . . Robot Hit Streak 6 | 6 6 1 Robot Miss Streak 7 | 2 7 2 Penetration Max . | . . . Secondary Targets 2 | . 2 . Max Gunslinging Chain 1 | . 1 . Shots Hit Robots 84 | 21 62 1 Core Hits 47 | 4 28 15 Critical Kills . | . . . Critical Parts Destroyed . | . . . Critical Strikes . | . . . Melee Attacks . | . . . Impact . | . . . Slashing . | . . . Piercing . | . . . Sneak Attacks . | . . . Combat Hostiles . | . . . Follow-up Attacks . | . . . Damage Inflicted 1481 | 257 777 447 Guns 838 | 257 581 . Cannons . | . . . Explosions 642 | . 195 447 Melee . | . . . Ramming 1 | . 1 . Kinetic 713 | 132 581 . Thermal 125 | 125 . . Explosive 642 | . 195 447 Electromagnetic . | . . . Impact . | . . . Slashing . | . . . Piercing . | . . . Highest Corruption 2 | . 2 . Average Corruption 2 | . 2 . Corruption Purged . | . . . Corruption Blocked . | . . . Overload Shots . | . . . Overflow Damage 15 | . 15 . Projectiles . | . . . Explosions 15 | . 15 . Melee . | . . . Knockbacks . | . . . Impact . | . . . Kinetic . | . . . Secondary . | . . . Self-Inflicted Damage 44 | . . 44 Shots 2 | . . 2 Rammed . | . . . Targets Rammed 1 | . 1 . Kicked 1 | . 1 . Crushed . | . . . Highest Temperature 36 | 36 7 6 Average Temperature 11 | 16 1 2 Received Heat Transfer 258 | . 207 51 Siege Activations . | . . . Robots Corrupted . | . . . Combat Hostiles . | . . . Parts Fried . | . . . Impact Corruptions . | . . . Robots Melted . | . . . Combat Hostiles . | . . . Parts Melted . | . . . Heat Transferred 370 | 370 . . Parts Sabotaged . | . . . Parts Stolen . | . . . Parts Stripped . | . . . Power Chain Reactions . | . . . Alert | -11 -10 -9 ------- Run | Yrd Mat Mat Peak Influence 302 | 15 171 302 Initial 72 | . 9 72 Average 55 | 1 54 150 Maximum Alert Level 1 | . . 1 Low Security (%) 97 | 100 100 70 Level 1 2 | . . 29 Level 2 . | . . . Level 3 . | . . . Level 4 . | . . . Level 5 . | . . . High Security . | . . . Max Security . | . . . Squads Dispatched 4 | . 2 2 Investigation . | . . . Extermination . | . . . Reinforcement 4 | . 2 2 Assault . | . . . Garrison . | . . . Intercept . | . . . Searches Triggered . | . . . Construction Impeded 1 | . . 1 Haulers Reinforced . | . . . Active Scanning Responses . | . . . Cargo Convoy Interrupts . | . . . Stealth | -11 -10 -9 --------- Run | Yrd Mat Mat Distress Signals 3 | . 3 . Communications Jammed . | . . . Distress Signals . | . . . Times Spotted 22 | . 16 6 Peak Tracking Total 6 | . 6 2 Tactical Retreats . | . . . Traps | -11 -10 -9 ------- Run | Yrd Mat Mat Traps Triggered 1 | . 1 . Indirectly . | . . . Trap Hack Attempts . | . . . Triggered . | . . . Disarmed . | . . . Reprogrammed . | . . . Reused . | . . . Traps Extracted . | . . . Installed . | . . . Triggered . | . . . Machines | -11 -10 -9 ---------- Run | Yrd Mat Mat Machines Disabled . | . . . Max in Single Turn . | . . . Machines Repaired . | . . . Machines Dismantled . | . . . Machines Sabotaged . | . . . Overloaded Fab Kills . | . . . Hacking | -11 -10 -9 --------- Run | Yrd Mat Mat Machines Accessed 2 | . 2 . Terminals 2 | . 2 . Fabricators . | . . . Repair Stations . | . . . Recycling Units . | . . . Scanalyzers . | . . . Garrison Access . | . . . Total Hacks 5 | . 5 . Successful 2 | . 2 . Failed 3 | . 3 . Catastrophic . | . . . Database Lockouts . | . . . Manual . | . . . Terminals 5 | . 5 . Fabricators . | . . . Repair Stations . | . . . Recycling Units . | . . . Scanalyzers . | . . . Garrison Access . | . . . Terminal Hacks 2 | . 2 . Alert Level 1 | . 1 . Zone Layout 1 | . 1 . Fabricator Hacks . | . . . Repair Station Hacks . | . . . Recycling Unit Hacks . | . . . Scanalyzer . | . . . Garrison Access Hacks . | . . . Unauthorized Hacks . | . . . Terminals . | . . . Fabricators . | . . . Repair Stations . | . . . Recycling Units . | . . . Scanalyzers . | . . . Garrison Access . | . . . Data Cores Recovered . | . . . Used . | . . . Hacking Detections 2 | . 2 . Full Trace Events 2 | . 2 . Feedback Events . | . . . Feedback Blocked . | . . . Robot Schematics Acquired . | . . . Robots Built . | . . . Authchips . | . . . Time . | . . . Total Robot Build Rating . | . . . Part Schematics Acquired . | . . . Parts Built . | . . . Authchips . | . . . Time . | . . . Total Part Build Rating . | . . . Parts Repaired . | . . . Time . | . . . Parts Recycled . | . . . Recycled Matter . | . . . Retrieved Matter . | . . . Retrieved Components . | . . . Parts Scanalyzed . | . . . Part Schematics Acquired . | . . . Parts Damaged . | . . . Bothacking | -11 -10 -9 ------------ Run | Yrd Mat Mat Used RIF Installer . | . . . Robots Hacked . | . . . Non-combat . | . . . Combat . | . . . Robot Hacks Applied . | . . . Relay Couplers Released . | . . . Fabnet Peak Effective % . | . . . Robots Rewired . | . . . Allies Hacked . | . . . Hacks Repelled . | . . . Allies | -11 -10 -9 -------- Run | Yrd Mat Mat Total Allies . | . . . Largest Group . | . . . Highest-Rated Group . | . . . Highest-Rated Ally . | . . . Total Orders . | . . . Ally Attacks . | . . . Total Damage . | . . . Kills . | . . . Allies Corrupted . | . . . Allies Melted . | . . . Intel | -11 -10 -9 ------- Run | Yrd Mat Mat Robot Analysis Total . | . . . Derelict Logs Recovered . | . . . Drone Launches . | . . . Drone Recoveries . | . . . Exploration | -11 -10 -9 ------------- Run | Yrd Mat Mat Turns Passed 806 | 116 613 77 Spaces Moved 328 | 47 240 41 Core 10 | 10 . . Treads . | . . . Legs 210 | 37 173 . Wheels 108 | . 67 41 Hover . | . . . Flight . | . . . Fastest Speed 50 | 50 95 95 Average Speed 154 | 120 171 95 Slowest Speed 260 | 150 260 95 Overloaded Moves . | . . . Propulsion Burnouts . | . . . Robots Hopped . | . . . Cave-ins Triggered . | . . . Exploration Rate (%) 24 | 5 59 10 Regions Visited 2 Branch Regions . Pre-discovered Areas . | . . . Known Exits Taken . | . . . Unknown Exits Taken 2 | 1 1 . Scrap Searched . | . . . Spaces Dug . | . . . Terrain Destroyed 103 | . 32 71 Melee . | . . . Projectile . | . . . AOE 103 | . 32 71 Terrain Rammed . | . . . Walls Destroyed . | . . . Machines Disabled . | . . . Actions | -11 -10 -9 --------- Run | Yrd Mat Mat Total 481 | 72 349 60 Wait 37 | . 37 . Move 326 | 46 239 41 Hop . | . . . Pick Up 10 | 3 7 . Fast Attach 8 | 6 2 . Attach 3 | . 3 . Detach . | . . . Swap 5 | 2 3 . Drop 1 | . 1 . Fire 90 | 15 56 19 Melee . | . . . Ram . | . . . Kick 1 | . 1 . Crush . | . . . Escape Stasis . | . . . Rewire . | . . . Trap . | . . . Miscellaneous . | . . . Route ------- -11/Scrapyard -10/Materials (discovered 3 exits: [*Mat x2] / [*Min]) -9/Materials (discovered 1 exit: [*Sto]) History --------- Turn | Location | Event 12 | -11/Scrapyard | Discovered new exit (range 16) 117 | -11/Scrapyard | Entered Materials 291 | -10/Materials | Discovered new exit (range 17) 301 | -10/Materials | Build established: Mutant 543 | -10/Materials | Core integrity fell below 50% 659 | -10/Materials | Discovered new exit (range 5) 720 | -10/Materials | Discovered new exit (range 11) 730 | -10/Materials | Entered another Materials area 730 | -9/Materials | Evolved 2 slots: Utility x2 793 | -9/Materials | Discovered new exit (range 9) 807 | -9/Materials | Self-destructed Last Messages --------------- 00788_ Acquired 29 matter. 00789_ U-05 Engineer lays Concrete. 00792_ K-01 Serf collects debris. 00793_ EXIT=FOUND 00793_ U-05 Engineer lays Concrete. 00793_ U-05 Engineer destroyed. 00794_ The unstable cave ceiling collapses. 00794_ U-05 Engineer lays Concrete. 00795_ G-34 Mercenary destroyed. 00796_ U-05 Engineer lays Concrete. 00801_ The unstable cave ceiling collapses. 00801_ U-05 Engineer lays Concrete. 00801_ K-01 Serf collects debris. 00801_ W-16 Scout destroyed. 00802_ The unstable cave ceiling collapses. 00802_ U-05 Engineer lays Concrete. 00802_ Grenade Launcher destroyed. 00802_ U-05 Engineer lays Concrete. 00804_ U-05 Engineer builds a Wall. 00805_ K-01 Serf collects debris. Map ----- +----------------------------------------------------+ | ?????????????????????????????????????????????????? | | ?????????????????????????????????????????????????? | | ?????????????????????????????????????????????????? | | ?????????????????????????????????????????????????? | | ?????????????????????????????????????????????????? | | ?????????????????????????????????????????????????? | | ?????????????????????????????????????????????????? | | ?????????????????????????????????????????????????? | | ?????????????????????????????????????????????????? | | ??????????????????????####???????????????######### | | ?????????????????????# ? ???#+#??????? # | | ?????????????????????#" ???# #??????? # ? | | ?????????????????????#T ???# #???????""" # ?? | | ?????????????????????#" ???# #????????"" # ?? | | ?????????????????????? #### #######??"" # ??? | | ??????????????????????? + #??? # #??? | | ???????????????????????? #### #??? # #??? | | ????????????????????????## # #####+# #??? | | ????????????????????????# #??? | | ???????????????????????##!| * ########### #??? | | ???????????? ??????????# !|* * #?????????# #### | | ???????????# ??????## !|[*[ #?????????# | | ???????????# ??## #?????????####+#### | | ???????????+ = [ # #??????????? ??? | | ???????????# ##??????????# ??? | | ??????????????###### # @ #???????????#""" ?? | | ???????????????????# m #???????????#""" ?? | | ???????????????? ## #???????????#""" ? | | ???????????? =%! u k* %=??????????# ? | | ??????????? !! * Y